fUST/lending_fUST_20250531
["ID","MTS","AMOUNT","RATE_DAILY","PERIOD"]
[363282312,1748657439517,-1208.2,0.00016986,2]
[363282313,1748657439527,-430.0,0.00016986,2]
[363282314,1748657439536,-441.13171445,0.00016986,2]
[363282315,1748657439546,-430.0,0.00016986,2]
[363282316,1748657439555,-430.0,0.00016986,2]
[363282317,1748657439564,-1485.08,0.00016986,2]
[363282318,1748657439573,-430.0,0.00016986,2]
[363282319,1748657439582,-430.0,0.00016986,2]
[363282320,1748657439592,-430.0,0.00016986,2]
[363282321,1748657439601,-779.43,0.00016986,2]
[363282322,1748657439611,-430.0,0.00016986,2]
[363282323,1748657439620,-430.0,0.00016986,2]
[363282324,1748657439631,-1041.81,0.00016986,2]
[363282325,1748657439640,-430.0,0.00016986,2]
[363282326,1748657439649,-430.0,0.00016986,2]
[363282327,1748657439659,-430.0,0.00016986,2]
[363282328,1748657439668,-430.0,0.00016986,2]
[363282329,1748657439677,-430.0,0.00016986,2]
[363282330,1748657439686,-430.0,0.00016986,2]
[363282331,1748657439695,-295.63124419,0.00016986,2]
[363282332,1748657439704,-430.0,0.00016986,2]
[363282333,1748657439714,-430.0,0.00016986,2]
[363282334,1748657439723,-816.65,0.00016986,2]
[363282335,1748657439732,-430.0,0.00016986,2]
[363282336,1748657439742,-430.0,0.00016986,2]
[363282337,1748657439751,-430.0,0.00016986,2]
[363282338,1748657439760,-430.0,0.00016986,2]
[363282339,1748657439770,-430.0,0.00016986,2]
[363282340,1748657439779,-611.56,0.00016986,2]
[363282341,1748657439789,-430.0,0.00016986,2]
[363282342,1748657439798,-522.38,0.00016986,2]
[363282343,1748657439808,-440.92,0.00016986,2]
[363282344,1748657439817,-486.04,0.00016986,2]
[363282345,1748657439826,-430.0,0.00016986,2]
[363282346,1748657439836,-201.25692703,0.00016986,2]
[363282347,1748657439845,-430.0,0.00016986,2]
[363282348,1748657439855,-1148.61,0.00016986,2]
[363282349,1748657439864,-430.0,0.00017259,2]
[363282350,1748657439874,-430.0,0.00017259,2]
[363282351,1748657439884,-430.0,0.00017259,2]
[363282352,1748657439893,-430.0,0.00017259,2]
[363282353,1748657439902,-578.7,0.00017259,2]
[363282354,1748657439911,-430.0,0.00017259,2]
[363282355,1748657439921,-430.0,0.00017259,2]
[363282356,1748657439930,-430.0,0.00017259,2]
[363282357,1748657439939,-640.0,0.0001726,2]
[363282358,1748657439948,-1267.95,0.0001726,2]
[363282359,1748657439957,-430.0,0.0001726,2]
[363282360,1748657439967,-430.0,0.0001726,2]
[363282361,1748657439976,-247.50670935,0.0001726,2]
[363282362,1748657439985,-430.0,0.0001726,2]
[363282364,1748657439995,-604.05,0.0001726,2]
[363282365,1748657440005,-1252.54,0.0001726,2]
[363282366,1748657440014,-1208.2,0.0001726,2]
[363282367,1748657440023,-430.0,0.0001726,2]
[363282368,1748657440033,-191.99598513,0.0001726,2]
[363282369,1748657440042,-430.0,0.0001726,2]
[363282370,1748657440051,-1485.08,0.0001726,2]
[363282371,1748657440061,-430.0,0.0001726,2]
[363282372,1748657440070,-430.0,0.0001726,2]
[363282373,1748657440080,-779.43,0.0001726,2]
[363282374,1748657440089,-1041.81,0.0001726,2]
[363282375,1748657440099,-430.0,0.0001726,2]
[363282376,1748657440316,-430.0,0.0001726,2]
[363282378,1748657440326,-430.0,0.0001726,2]
[363282380,1748657440336,-430.0,0.0001726,2]
[363282382,1748657440348,-816.65,0.0001726,2]
[363282384,1748657440357,-611.56,0.0001726,2]
[363282385,1748657440366,-522.38,0.0001726,2]
[363282386,1748657440377,-486.04,0.0001726,2]
[363282387,1748657440386,-1148.61,0.0001726,2]
[363282389,1748657440396,-430.0,0.00017533,2]
[363282391,1748657440405,-430.0,0.00017533,2]
[363282393,1748657440414,-430.0,0.00017533,2]
[363282395,1748657440424,-430.0,0.00017533,2]
[363282397,1748657440433,-578.7,0.00017533,2]
[363282399,1748657440443,-430.0,0.00017533,2]
[363282401,1748657440453,-430.0,0.00017533,2]
[363282403,1748657440463,-436.48722184,0.00017533,2]
[363282405,1748657440473,-640.0,0.00017534,2]
[363282406,1748657440483,-1267.95,0.00017534,2]
[363282407,1748657440492,-430.0,0.00017534,2]
[363282408,1748657440502,-430.0,0.00017534,2]
[363282409,1748657440511,-430.0,0.00017534,2]
[363282410,1748657440521,-604.05,0.00017534,2]
[363282411,1748657440531,-1252.54,0.00017534,2]
[363282412,1748657440542,-1208.2,0.00017534,2]
[363282414,1748657440553,-430.0,0.00017534,2]
[363282415,1748657440564,-503.1,0.00017534,2]
[363282416,1748657440573,-1485.08,0.00017534,2]
[363282417,1748657440582,-430.0,0.00017534,2]
[363282418,1748657440591,-430.0,0.00017534,2]
[363282419,1748657440601,-779.43,0.00017534,2]
[363282420,1748657440610,-1041.81,0.00017534,2]
[363282421,1748657440620,-430.0,0.00017534,2]
[363282422,1748657440631,-430.0,0.00017534,2]
[363282423,1748657440641,-430.0,0.00017534,2]
[363282424,1748657440652,-430.0,0.00017534,2]
[363282425,1748657440662,-816.65,0.00017534,2]
[363282426,1748657440671,-611.56,0.00017534,2]
[363282427,1748657440682,-522.38,0.00017534,2]
[363282428,1748657440691,-486.04,0.00017534,2]
[363282429,1748657440701,-1148.61,0.00017534,2]
[363282430,1748657440711,-430.0,0.00017807,2]
[363282431,1748657440720,-430.0,0.00017807,2]
[363282432,1748657440730,-578.7,0.00017807,2]
[363282433,1748657440740,-430.0,0.00017807,2]
[363282434,1748657440749,-555.9,0.00017807,2]
[363282435,1748657440758,-640.0,0.00017808,2]
[363282436,1748657440767,-1267.95,0.00017808,2]
[363282437,1748657440776,-430.0,0.00017808,2]
[363282438,1748657440785,-430.0,0.00017808,2]
[363282439,1748657440794,-430.0,0.00017808,2]
[363282440,1748657440804,-604.05,0.00017808,2]
[363282441,1748657440813,-1252.54,0.00017808,2]
[363282442,1748657440822,-1208.2,0.00017808,2]
[363282443,1748657440832,-430.0,0.00017808,2]
[363282444,1748657440841,-1485.08,0.00017808,2]
[363282445,1748657440850,-430.0,0.00017808,2]
[363282446,1748657440859,-430.0,0.00017808,2]
[363282447,1748657440868,-779.43,0.00017808,2]
[363282448,1748657440878,-1041.81,0.00017808,2]
[363282449,1748657440887,-430.0,0.00017808,2]
[363282451,1748657440897,-430.0,0.00017808,2]
[363282453,1748657440906,-430.0,0.00017808,2]
[363282455,1748657440915,-430.0,0.00017808,2]
[363282457,1748657440924,-816.65,0.00017808,2]
[363282458,1748657440934,-611.56,0.00017808,2]
[363282459,1748657440948,-522.38,0.00017808,2]
[363282460,1748657440961,-486.04,0.00017808,2]
[363282461,1748657440974,-1148.61,0.00017808,2]
[363282463,1748657440986,-1100.0,0.00017864,2]
[363282464,1748657440999,-500.0,0.00017884,2]
[363282465,1748657441009,-160.0,0.00017891,2]
[363282466,1748657441019,-842.5625,0.00017891,2]
[363282467,1748657441032,-423.4608169,0.00017891,2]
[363282468,1748657441043,-229.3428821,0.00017891,2]
[363282469,1748657441055,-160.0,0.00017891,2]
[363282470,1748657441067,-160.0,0.00017891,2]
[363282471,1748657441079,-160.0,0.00017891,2]
[363282472,1748657441092,-12664.98044988,0.00017891,2]
[363282473,1748657441103,-212.77096907,0.00017891,2]
[363282474,1748657441114,-160.0,0.00017891,2]
[363282475,1748657441129,-152.71356878,0.000179,2]
[363282476,1748657441147,-3370.55160984,0.000179,2]
[363282477,1748657441161,-3132.23631731,0.000179,2]
[363282478,1748657441172,-500.0,0.00017905,2]
[363282479,1748657441186,-420.0,0.00017962,2]
[363282480,1748657441197,-420.0,0.00017963,2]
[363282481,1748657441209,-500.0,0.00018,2]
[363282482,1748657441220,-500.0,0.00018,2]
[363282483,1748657441230,-500.0,0.00018041,2]
[363282484,1748657441243,-500.0,0.00018041,2]
[363282485,1748657441256,-250.0,0.0001805,2]
[363282486,1748657441268,-793.09,0.00018071,3]
[363282487,1748657441280,-1000.0,0.00018077,7]
[363282488,1748657441293,-1000.0,0.00018077,7]
[363282489,1748657441303,-1000.0,0.00018077,2]
[363282490,1748657441314,-203.24271808,0.00018081,2]
[363282491,1748657441324,-430.0,0.00018081,2]
[363282492,1748657441336,-430.0,0.00018081,2]
[363282493,1748657441350,-578.7,0.00018081,2]
[363282494,1748657441362,-430.0,0.00018081,2]
[363282495,1748657441374,-640.0,0.00018082,2]
[363282496,1748657441387,-1267.95,0.00018082,2]
[363282497,1748657441399,-430.0,0.00018082,2]
[363282498,1748657441410,-430.0,0.00018082,2]
[363282499,1748657441423,-366.64297032,0.00018082,2]
[363282500,1748657441436,-604.05,0.00018082,2]
[363282501,1748657441449,-1252.54,0.00018082,2]
[363282502,1748657441462,-1208.2,0.00018082,2]
[363282503,1748657441475,-430.0,0.00018082,2]
[363282504,1748657441487,-1485.08,0.00018082,2]
[363282505,1748657441497,-430.0,0.00018082,2]
[363282506,1748657441507,-430.0,0.00018082,2]
[363282507,1748657441517,-779.43,0.00018082,2]
[363282508,1748657441527,-1041.81,0.00018082,2]
[363282509,1748657441539,-430.0,0.00018082,2]
[363282510,1748657441551,-430.0,0.00018082,2]
[363282511,1748657441564,-430.0,0.00018082,2]
[363282512,1748657441576,-430.0,0.00018082,2]
[363282513,1748657441589,-816.65,0.00018082,2]
[363282514,1748657441599,-611.56,0.00018082,2]
[363282515,1748657441610,-522.38,0.00018082,2]
[363282516,1748657441621,-486.04,0.00018082,2]
[363282517,1748657441633,-1148.61,0.00018082,2]
[363282518,1748657441643,-264.36,0.0001809,3]
[363282519,1748657441656,-500.0,0.000181,2]
[363282520,1748657441668,-500.0,0.000181,2]
[363282521,1748657441678,-500.0,0.000181,2]
[363282522,1748657441689,-500.0,0.000181,2]
[363282523,1748657441700,-503.32066576,0.000181,2]
[363282524,1748657441711,-3132.23631728,0.00018141,2]
[363282525,1748657441722,-937.28126419,0.00018248,2]
[363282526,1748657441733,-1057.44,0.00018346,3]
[363282527,1748657441743,-528.72,0.00018346,3]
[363282528,1748657441753,-430.0,0.00018355,2]
[363282529,1748657441764,-185.21695164,0.00018355,2]
[363282530,1748657441775,-578.7,0.00018355,2]
[363282531,1748657441784,-430.0,0.00018355,2]
[363282532,1748657441795,-207.4,0.00018356,2]
[363282533,1748657441805,-300.0,0.00018356,2]
[363282534,1748657441815,-300.0,0.00018356,2]
[363282535,1748657441825,-300.0,0.00018356,2]
[363282536,1748657441836,-300.0,0.00018356,2]
[363282537,1748657441848,-300.0,0.00018356,2]
[363282538,1748657441859,-5000.0,0.00018356,2]
[363282539,1748657441869,-300.0,0.00018356,2]
[363282540,1748657441882,-300.0,0.00018356,2]
[363282541,1748657441895,-300.0,0.00018356,2]
[363282542,1748657441908,-300.0,0.00018356,2]
[363282543,1748657441920,-300.0,0.00018356,2]
[363282544,1748657441931,-300.0,0.00018356,2]
[363282545,1748657441941,-300.0,0.00018356,2]
[363282546,1748657441952,-300.0,0.00018356,2]
[363282547,1748657441963,-300.0,0.00018356,2]
[363282548,1748657441973,-300.0,0.00018356,2]
[363282549,1748657441985,-640.0,0.00018356,2]
[363282550,1748657441996,-1267.95,0.00018356,2]
[363282551,1748657442007,-430.0,0.00018356,2]
[363282552,1748657442018,-430.0,0.00018356,2]
[363282553,1748657442029,-604.05,0.00018356,2]
[363282554,1748657442040,-1252.54,0.00018356,2]
[363282555,1748657442050,-1208.2,0.00018356,2]
[363282556,1748657442061,-430.0,0.00018356,2]
[363282557,1748657442072,-1485.08,0.00018356,2]
[363282558,1748657442083,-430.0,0.00018356,2]
[363282559,1748657442094,-430.0,0.00018356,2]
[363282560,1748657442105,-779.43,0.00018356,2]
[363282561,1748657442116,-1041.81,0.00018356,2]
[363282562,1748657442134,-430.0,0.00018356,2]
[363282563,1748657442148,-430.0,0.00018356,2]
[363282564,1748657442164,-430.0,0.00018356,2]
[363282565,1748657442178,-430.0,0.00018356,2]
[363282566,1748657442189,-816.65,0.00018356,2]
[363282567,1748657442203,-611.56,0.00018356,2]
[363282568,1748657442213,-522.38,0.00018356,2]
[363282569,1748657442224,-486.04,0.00018356,2]
[363282570,1748657442234,-1148.61,0.00018356,2]
[363282571,1748657442245,-3132.23631728,0.00018383,2]
[363282572,1748657442255,-500.0,0.00018432,2]
[363282573,1748657442266,-1000.0,0.00018548,2]
[363282574,1748657442278,-1000.0,0.00018589,2]
[363282575,1748657442289,-1000.0,0.00018589,2]
[363282576,1748657442301,-3132.23631728,0.00018624,2]
[363282577,1748657442311,-430.0,0.00018629,2]
[363282578,1748657442322,-578.7,0.00018629,2]
[363282579,1748657442334,-430.0,0.00018629,2]
[363282580,1748657442347,-640.0,0.0001863,2]
[363282581,1748657442357,-1267.95,0.0001863,2]
[363282582,1748657442368,-430.0,0.0001863,2]
[363282583,1748657442382,-430.0,0.0001863,2]
[363282584,1748657442392,-604.05,0.0001863,2]
[363282585,1748657442404,-1252.54,0.0001863,2]
[363282586,1748657442414,-1208.2,0.0001863,2]
[363282587,1748657442427,-430.0,0.0001863,2]
[363282588,1748657442438,-1485.08,0.0001863,2]
[363282589,1748657442450,-430.0,0.0001863,2]
[363282590,1748657442461,-430.0,0.0001863,2]
[363282591,1748657442472,-779.43,0.0001863,2]
[363282592,1748657442483,-1041.81,0.0001863,2]
[363282593,1748657442494,-430.0,0.0001863,2]
[363282594,1748657442505,-430.0,0.0001863,2]
[363282595,1748657442515,-430.0,0.0001863,2]
[363282596,1748657442526,-430.0,0.0001863,2]
[363282597,1748657442536,-816.65,0.0001863,2]
[363282598,1748657442548,-611.56,0.0001863,2]
[363282599,1748657442559,-522.38,0.0001863,2]
[363282600,1748657442570,-486.04,0.0001863,2]
[363282601,1748657442581,-1148.61,0.0001863,2]
[363282602,1748657442593,-469.8265371,0.00018648,2]
[363282603,1748657442604,-1000.0,0.00018648,2]
[363282604,1748657442615,-1004.60333227,0.00018648,2]
[363282605,1748657442627,-1005.26177206,0.00018648,2]
[363282606,1748657442636,-299.142,0.00018684,2]
[363282607,1748657442647,-540.23983713,0.00018801,2]
[363282608,1748657442656,-3132.23631728,0.00018866,2]
[363282609,1748657442808,-4496.66463367,0.000189,2]
[363282610,1748657442850,-430.0,0.00018903,2]
[363282611,1748657442861,-578.7,0.00018903,2]
[363282612,1748657442871,-430.0,0.00018903,2]
[363282613,1748657442881,-5000.0,0.00018904,2]
[363282614,1748657442890,-640.0,0.00018904,2]
[363282615,1748657442899,-1267.95,0.00018904,2]
[363282616,1748657442908,-430.0,0.00018904,2]
[363282617,1748657442917,-430.0,0.00018904,2]
[363282618,1748657442928,-604.05,0.00018904,2]
[363282619,1748657442938,-1252.54,0.00018904,2]
[363282620,1748657442949,-1208.2,0.00018904,2]
[363282621,1748657442958,-430.0,0.00018904,2]
[363282622,1748657442969,-1485.08,0.00018904,2]
[363282623,1748657442978,-430.0,0.00018904,2]
[363282624,1748657442988,-430.0,0.00018904,2]
[363282625,1748657442997,-779.43,0.00018904,2]
[363282626,1748657443006,-1041.81,0.00018904,2]
[363282627,1748657443016,-430.0,0.00018904,2]
[363282628,1748657443025,-430.0,0.00018904,2]
[363282629,1748657443035,-430.0,0.00018904,2]
[363282630,1748657443044,-430.0,0.00018904,2]
[363282631,1748657443054,-816.65,0.00018904,2]
[363282632,1748657443063,-611.56,0.00018904,2]
[363282633,1748657443072,-486.04,0.00018904,2]
[363282634,1748657443081,-522.38,0.00018904,2]
[363282635,1748657443089,-1148.61,0.00018904,2]
[363282636,1748657443098,-173.5688213,0.00018959,2]
[363282637,1748657443107,-1100.0,0.0001896,2]
[363282638,1748657443116,-284.6396,0.00019035,2]
[363282639,1748657443125,-500.0,0.00019036,2]
[363282640,1748657443135,-1500.0,0.00019096,2]
[363282641,1748657443144,-3132.23631728,0.00019107,2]
[363282642,1748657443153,-643.82978831,0.00019137,2]
[363282643,1748657443162,-1500.0,0.00019137,2]
[363282644,1748657443171,-286.04309036,0.00019176,2]
[363282645,1748657443181,-500.0,0.00019176,2]
[363282646,1748657443190,-500.0,0.00019176,2]
[363282647,1748657443198,-500.0,0.00019176,2]
[363282648,1748657443209,-500.0,0.00019176,2]
[363282649,1748657443218,-443.80995966,0.00019176,2]
[363282650,1748657443227,-500.0,0.00019176,2]
[363282651,1748657443236,-500.0,0.00019176,2]
[363282652,1748657443245,-430.0,0.00019177,2]
[363282653,1748657443254,-578.7,0.00019177,2]
[363282654,1748657443262,-430.0,0.00019177,2]
[363282655,1748657443272,-640.0,0.00019178,2]
[363282656,1748657443281,-1267.95,0.00019178,2]
[363282657,1748657443290,-500.0,0.00019178,2]
[363282658,1748657443299,-205.11529356,0.00019178,2]
[363282659,1748657443309,-430.0,0.00019178,2]
[363282660,1748657443318,-430.0,0.00019178,2]
[363282661,1748657443327,-604.05,0.00019178,2]
[363282662,1748657443336,-1252.54,0.00019178,2]
[363282663,1748657443349,-1208.2,0.00019178,2]
[363282664,1748657443358,-430.0,0.00019178,2]
[363282665,1748657443368,-1485.08,0.00019178,2]
[363282666,1748657443377,-540.88275212,0.00019178,2]
[363282667,1748657443387,-430.0,0.00019178,2]
[363282668,1748657443396,-779.43,0.00019178,2]
[363282669,1748657443405,-1041.81,0.00019178,2]
[363282670,1748657443415,-430.0,0.00019178,2]
[363282671,1748657443426,-448.01527064,0.00019178,2]
[363282672,1748657443435,-430.0,0.00019178,2]
[363282673,1748657443444,-430.0,0.00019178,2]
[363282674,1748657443453,-816.65,0.00019178,2]
[363282675,1748657443462,-500.0,0.00019178,2]
[363282676,1748657443471,-500.0,0.00019178,2]
[363282677,1748657443481,-650.0,0.00019178,2]
[363282678,1748657443490,-500.0,0.00019178,2]
[363282679,1748657443500,-500.0,0.00019178,2]
[363282680,1748657443510,-500.0,0.00019178,2]
[363282681,1748657443520,-611.56,0.00019178,2]
[363282682,1748657443530,-500.0,0.00019178,2]
[363282683,1748657443539,-500.0,0.00019178,2]
[363282684,1748657443548,-561.43387783,0.00019178,2]
[363282685,1748657443558,-500.0,0.00019178,2]
[363282686,1748657443567,-500.0,0.00019178,2]
[363282687,1748657443576,-486.04,0.00019178,2]
[363282688,1748657443585,-522.38,0.00019178,2]
[363282689,1748657443594,-500.0,0.00019178,2]
[363282691,1748657443603,-500.0,0.00019178,2]
[363282694,1748657443612,-500.0,0.00019178,2]
[363282697,1748657443621,-500.0,0.00019178,2]
[363282700,1748657443631,-500.0,0.00019178,2]
[363282703,1748657443640,-500.0,0.00019178,2]
[363282706,1748657443649,-500.0,0.00019178,2]
[363282709,1748657443659,-500.0,0.00019178,2]
[363282713,1748657443668,-500.0,0.00019178,2]
[363282716,1748657443677,-500.0,0.00019178,2]
[363282719,1748657443686,-1148.61,0.00019178,2]
[363282722,1748657443695,-500.0,0.00019178,2]
[363282725,1748657443703,-500.0,0.00019178,2]
[363282727,1748657443712,-496.25212856,0.00019178,2]
[363282730,1748657443722,-151.0,0.00019178,2]
[363282732,1748657443731,-493.186041,0.00019178,2]
[363282734,1748657443740,-1509.7816681,0.00019196,2]
[363282736,1748657443750,-2148.22,0.000192,2]
[363282738,1748657443759,-173.5688213,0.00019205,2]
[363282740,1748657443768,-156.587,0.00019233,2]
[363282742,1748657443782,-208.401,0.00019237,2]
[363282744,1748657443791,-238.354,0.00019237,2]
[363282746,1748657443800,-250.0,0.00019237,2]
[363282748,1748657443810,-150.091,0.00019237,2]
[363282750,1748657443819,-257.794,0.00019237,2]
[363282752,1748657443828,-242.0,0.00019237,2]
[363282754,1748657443837,-215.257,0.00019237,2]
[363282756,1748657443850,-962.0,0.00019237,2]
[363282758,1748657443871,-2228.0,0.00019237,2]
[363282760,1748657443881,-708.0,0.00019237,2]
[363282762,1748657443891,-407.709,0.00019237,2]
[363282763,1748657443900,-162.380719,0.00019288,2]
[363282764,1748657443909,-200.0,0.00019329,10]
[363282765,1748657443918,-200.0,0.00019329,10]
[363282766,1748657443927,-200.0,0.00019329,10]
[363282767,1748657443937,-200.0,0.00019329,10]
[363282768,1748657443947,-200.0,0.00019329,10]
[363282769,1748657443956,-200.0,0.00019329,10]
[363282771,1748657443966,-200.0,0.00019329,10]
[363282773,1748657443975,-200.0,0.00019329,10]
[363282775,1748657443985,-200.0,0.00019329,10]
[363282777,1748657443994,-200.0,0.00019329,10]
[363282779,1748657444003,-200.0,0.00019329,10]
[363282781,1748657444012,-200.0,0.00019329,10]
[363282783,1748657444022,-200.0,0.00019329,10]
[363282784,1748657444031,-200.0,0.00019329,10]
[363282786,1748657444041,-200.0,0.00019329,10]
[363282788,1748657444051,-200.0,0.00019329,10]
[363282790,1748657444061,-200.0,0.00019329,10]
[363282792,1748657444071,-200.0,0.00019329,10]
[363282794,1748657444080,-200.0,0.00019329,10]
[363282796,1748657444089,-200.0,0.00019329,10]
[363282798,1748657444098,-200.0,0.00019329,10]
[363282800,1748657444107,-200.0,0.00019329,10]
[363282802,1748657444116,-200.0,0.00019329,10]
[363282804,1748657444125,-200.0,0.00019329,10]
[363282806,1748657444136,-207.065122,0.00019329,10]
[363282809,1748657444145,-89359.41374845,0.00019329,2]
[363282810,1748657444154,-168.3888056,0.00019343,2]
[363282813,1748657444163,-3132.23631728,0.00019348,2]
[363282814,1748657444173,-174.61919141,0.00019398,2]
[363282816,1748657444182,-303.4,0.00019451,2]
[363282818,1748657444191,-578.7,0.00019451,2]
[363282820,1748657444200,-460.38086076,0.00019451,2]
[363282822,1748657444209,-5000.0,0.00019452,2]
[363282824,1748657444219,-640.0,0.00019452,2]
[363282826,1748657444231,-1267.95,0.00019452,2]
[363282828,1748657444240,-430.0,0.00019452,2]
[363282830,1748657444250,-430.0,0.00019452,2]
[363282832,1748657444259,-1000.0,0.00019452,2]
[363282834,1748657444268,-1000.0,0.00019452,2]
[363282836,1748657444278,-1000.0,0.00019452,2]
[363282838,1748657444287,-1000.0,0.00019452,2]
[363282840,1748657444297,-1000.0,0.00019452,2]
[363282842,1748657444307,-1000.0,0.00019452,2]
[363282844,1748657444316,-1000.0,0.00019452,2]
[363282847,1748657444326,-1000.0,0.00019452,2]
[363282848,1748657444337,-1000.0,0.00019452,2]
[363282851,1748657444349,-1000.0,0.00019452,2]
[363282853,1748657444358,-1000.0,0.00019452,2]
[363282854,1748657444368,-1000.0,0.00019452,2]
[363282856,1748657444378,-1000.0,0.00019452,2]
[363282858,1748657444388,-1000.0,0.00019452,2]
[363282860,1748657444397,-1000.0,0.00019452,2]
[363282862,1748657444406,-1000.0,0.00019452,2]
[363282864,1748657444416,-1000.0,0.00019452,2]
[363282866,1748657444426,-1000.0,0.00019452,2]
[363282868,1748657444436,-1000.0,0.00019452,2]
[363282871,1748657444446,-1000.0,0.00019452,2]
[363282873,1748657444455,-1000.0,0.00019452,2]
[363282874,1748657444464,-1000.0,0.00019452,2]
[363282876,1748657444473,-1000.0,0.00019452,2]
[363282878,1748657444482,-499.32577521,0.00019452,2]
[363282880,1748657444491,-604.05,0.00019452,2]
[363282882,1748657444501,-1252.54,0.00019452,2]
[363282884,1748657444510,-1208.2,0.00019452,2]
[363282886,1748657444519,-430.0,0.00019452,2]
[363282888,1748657444528,-1485.08,0.00019452,2]
[363282890,1748657444537,-430.0,0.00019452,2]
[363282892,1748657444547,-779.43,0.00019452,2]
[363282894,1748657444556,-1041.81,0.00019452,2]
[363282896,1748657444565,-430.0,0.00019452,2]
[363282898,1748657444574,-430.0,0.00019452,2]
[363282900,1748657444583,-430.0,0.00019452,2]
[363282902,1748657444593,-816.65,0.00019452,2]
[363282904,1748657444601,-611.56,0.00019452,2]
[363282906,1748657444610,-486.04,0.00019452,2]
[363282908,1748657444620,-522.38,0.00019452,2]
[363282910,1748657444629,-1148.61,0.00019452,2]
[363282912,1748657444639,-181.08010149,0.00019453,2]
[363282914,1748657444648,-528.72,0.0001946,3]
[363282916,1748657444658,-2200.0,0.00019472,2]
[363282919,1748657444668,-2000.0,0.000195,2]
[363282921,1748657444677,-187.78006525,0.00019508,2]
[363282923,1748657444686,-194.72792766,0.00019563,2]
[363282925,1748657444696,-3132.23631728,0.0001959,2]
[363282927,1748657444705,-201.93286099,0.00019618,2]
[363282929,1748657444714,-587.0,0.0001963,2]
[363282931,1748657444723,-587.0,0.00019631,2]
[363282933,1748657444733,-2000.0,0.00019644,2]
[363282935,1748657444742,-209.40437684,0.00019673,2]
[363282937,1748657444751,-1035.15398651,0.00019685,2]
[363282938,1748657444760,-2114.88,0.00019716,3]
[363282940,1748657444769,-1057.44,0.00019716,3]
[363282942,1748657444778,-215.0738,0.00019725,2]
[363282944,1748657444787,-578.7,0.00019725,2]
[363282947,1748657444797,-640.0,0.00019726,2]
[363282949,1748657444806,-1267.95,0.00019726,2]
[363282950,1748657444815,-430.0,0.00019726,2]
[363282952,1748657444824,-430.0,0.00019726,2]
[363282954,1748657444833,-604.05,0.00019726,2]
[363282956,1748657444842,-1252.54,0.00019726,2]
[363282958,1748657444851,-1208.2,0.00019726,2]
[363282960,1748657444860,-430.0,0.00019726,2]
[363282962,1748657444870,-1485.08,0.00019726,2]
[363282964,1748657444879,-430.0,0.00019726,2]
[363282966,1748657444888,-779.43,0.00019726,2]
[363282968,1748657444898,-1041.81,0.00019726,2]
[363282970,1748657444907,-430.0,0.00019726,2]
[363282972,1748657444916,-430.0,0.00019726,2]
[363282974,1748657444925,-430.0,0.00019726,2]
[363282977,1748657444937,-816.65,0.00019726,2]
[363282978,1748657444947,-611.56,0.00019726,2]